[Event "3rd FIDE WCCC Blitz U10 2019"]
[Site "Minsk"]
[Date "2019.08.18"]
[Round "5.6"]
[White "Plotnikov, Boris"]
[Black "Zimin, Artur"]
[Result "0-1"]
[ECO "A04"]
[WhiteElo "1258"]
[BlackElo "1672"]
[Annotator "NA"]
[PlyCount "82"]
[EventDate "2019.08.18"]
[EventType "swiss"]
[EventCountry "BLR"]
[SourceTitle "playchess.com"]
[Source "ChessBase"]
[SourceQuality "1"]
[TimeControl "300+2"]

1. Nf3 {[%emt 0:00:00]} d6 {[%emt 0:00:00]} 2. b3 {[%emt 0:00:00]} Nf6 {[%emt 0:00:00]} 3. Bb2 {[%emt 0:00:00]} g6 {[%emt 0:00:00]} 4. g3 {[%emt 0:00:01]} Bg7 {[%emt 0:00:01]} 5. Bg2 {[%emt 0:00:01]} O-O {[%emt 0:00:02]} 6. O-O {[%emt 0:00:01]} Nc6 {[%emt 0:00:01]} 7. c4 {[%emt 0:00:02]} e5 {[%emt 0:00:01]} 8. d3 {[%emt 0:00:06]} Nd7 {[%emt 0:00:02]} 9. Nbd2 {[%emt 0:00:04]} e4 {[%emt 0:00:28]} 10. Bxg7 {[%emt 0:00:07]} exf3 {[%emt 0:00:01]} 11. Bxf8 {[%emt 0:00:05]} fxg2 {[%emt 0:00:02]} 12. Bh6 {[%emt 0:00:16]} gxf1=R+ {[%emt 0:00:11]} 13. Nxf1 {[%emt 0:00:11]} Qf6 {[%emt 0:00:07]} 14. Ne3 {[%emt 0:00:07]} Nb6 {[%emt 0:00:11]} 15. Rb1 {[%emt 0:00:12]} g5 {[%emt 0:00:09]} 16. Nd5 {[%emt 0:00:13]} Qxh6 {[%emt 0:00:19]} 17. Ne3 {[%emt 0:00:04]} Be6 {[%emt 0:00:05]} 18. d4 {[%emt 0:00:03]} d5 {[%emt 0:00:11]} 19. c5 {[%emt 0:00:04]} Nd7 {[%emt 0:00:01]} 20. b4 {[%emt 0:00:02]} Qf6 {[%emt 0:00:04]} 21. Nc2 {[%emt 0:00:01]} Bf5 {[%emt 0:00:03]} 22. b5 {[%emt 0:00:04]} Bxc2 {[%emt 0:00:10]} 23. Qxc2 {[%emt 0:00:02]} Nxd4 {[%emt 0:00:02]} 24. Qd2 {[%emt 0:00:04]} Nxc5 {[%emt 0:00:10]} 25. Rc1 {[%emt 0:00:14]} b6 {[%emt 0:00:27]} 26. Kg2 {[%emt 0:00:21]} Re8 {[%emt 0:00:14]} 27. e3 {[%emt 0:00:02]} Qf3+ {[%emt 0:00:01]} 28. Kg1 {[%emt 0:00:02]} Ne2+ {[%emt 0:00:03]} 29. Kf1 {[%emt 0:00:01]} Nxc1 {[%emt 0:00:02]} 30. Qxc1 {[%emt 0:00:06]} Qh1+ {[%emt 0:00:01]} 31. Ke2 {[%emt 0:00:01]} Qxc1 {[%emt 0:00:02]} 32. a4 {[%emt 0:00:01]} d4 {[%emt 0:00:02]} 33. h4 {[%emt 0:00:03]} dxe3 34. Kf3 {[%emt 0:00:03]} e2 {[%emt 0:00:07]} 35. Kg4 {[%emt 0:00:02]} e1=N {[%emt 0:00:04]} 36. hxg5 {[%emt 0:00:05]} Ne4 {[%emt 0:00:02]} 37. g6 {[%emt 0:00:03]} Qg5+ {[%emt 0:00:02]} 38. Kh3 {[%emt 0:00:01]} Nxf2+ {[%emt 0:00:02]} 39. Kh2 {[%emt 0:00:02]} Qh5+ {[%emt 0:00:10]} 40. Kg1 {[%emt 0:00:02]} Qh1+ {[%emt 0:00:01]} 41. Kxf2 {[%emt 0:00:02]} Qg2# {[%emt 0:00:01]} 0-1

[Event "3rd FIDE WCCC Blitz U10 2019"]
[Site "Minsk"]
[Date "2019.08.18"]
[Round "6.1"]
[White "Zverev, Lev"]
[Black "Usov, Aleksandr E."]
[Result "0-1"]
[ECO "B15"]
[WhiteElo "1881"]
[BlackElo "1919"]
[Annotator "NA"]
[PlyCount "112"]
[EventDate "2019.08.18"]
[EventType "swiss"]
[EventCountry "BLR"]
[SourceTitle "playchess.com"]
[Source "ChessBase"]
[SourceQuality "1"]
[TimeControl "300+2"]

1. e4 {[%emt 0:00:00]} c6 {[%emt 0:00:00]} 2. d4 {[%emt 0:00:01]} d5 {[%emt 0:00:00]} 3. Nc3 {[%emt 0:00:01]} dxe4 {[%emt 0:00:00]} 4. Nxe4 {[%emt 0:00:01]} Nf6 {[%emt 0:00:00]} 5. Nxf6+ {[%emt 0:00:02]} exf6 {[%emt 0:00:00]} 6. c3 {[%emt 0:00:02]} Bd6 {[%emt 0:00:01]} 7. Bd3 {[%emt 0:00:01]} O-O {[%emt 0:00:01]} 8. Qc2 {[%emt 0:00:01]} Re8+ {[%emt 0:00:00]} 9. Ne2 {[%emt 0:00:02]} h5 {[%emt 0:00:01]} 10. O-O {[%emt 0:00:04]} h4 {[%emt 0:00:01]} 11. Be3 {[%emt 0:00:51]} Nd7 {[%emt 0:00:03]} 12. h3 {[%emt 0:00:02]} Nf8 {[%emt 0:00:02]} 13. c4 {[%emt 0:00:12]} Be6 {[%emt 0:00:09]} 14. Nc3 {[%emt 0:00:04]} Qd7 {[%emt 0:00:26]} 15. Ne4 {[%emt 0:00:02]} Rad8 {[%emt 0:02:02]} 16. Nxd6 {[%emt 0:00:03]} Qxd6 {[%emt 0:00:01]} 17. Rad1 {[%emt 0:00:05]} a6 {[%emt 0:00:42]} 18. Be4 {[%emt 0:00:07]} Bxc4 {[%emt 0:00:15]} 19. Qxc4 {[%emt 0:00:11]} Rxe4 {[%emt 0:00:01]} 20. Qd3 {[%emt 0:00:10]} Qd5 {[%emt 0:00:02]} 21. f3 {[%emt 0:00:07]} Ree8 {[%emt 0:00:10]} 22. Bf2 {[%emt 0:00:01]} Ne6 {[%emt 0:00:09]} 23. Bxh4 {[%emt 0:00:32]} Nxd4 {[%emt 0:00:41]} 24. Kh1 {[%emt 0:00:03]} Nf5 {[%emt 0:00:15]} 25. Qxd5 {[%emt 0:00:05]} Rxd5 {[%emt 0:00:05]} 26. Bf2 {[%emt 0:00:18]} Re2 {[%emt 0:00:04]} 27. Rb1 {[%emt 0:00:39]} Rdd2 {[%emt 0:00:05]} 28. Kg1 {[%emt 0:00:01]} Rxb2 {[%emt 0:00:01]} 29. Rxb2 {[%emt 0:00:04]} Rxb2 {[%emt 0:00:02]} 30. a4 {[%emt 0:00:02]} b5 {[%emt 0:00:03]} 31. Rc1 {[%emt 0:00:12]} bxa4 {[%emt 0:00:14]} 32. Rxc6 {[%emt 0:00:02]} a3 {[%emt 0:00:00]} 33. Rxa6 {[%emt 0:00:02]} a2 {[%emt 0:00:01]} 34. Kh2 {[%emt 0:00:04]} Rxf2 {[%emt 0:00:03]} 35. Ra5 {[%emt 0:00:09]} Nd4 {[%emt 0:00:05]} 36. Kg3 {[%emt 0:00:02]} Rb2 {[%emt 0:00:02]} 37. Ra8+ {[%emt 0:00:02]} Kh7 {[%emt 0:00:01]} 38. Kf4 {[%emt 0:00:01]} Re2 {[%emt 0:00:02]} 39. Ra3 {[%emt 0:00:08]} g5+ {[%emt 0:00:02]} 40. Kg3 {[%emt 0:00:01]} Kg6 {[%emt 0:00:05]} 41. Kh2 {[%emt 0:00:05]} Nxf3+ {[%emt 0:00:03]} 42. Kg3 {[%emt 0:00:08]} Ne5 {[%emt 0:00:07]} 43. Kh2 {[%emt 0:00:02]} Nc6 {[%emt 0:00:06]} 44. Kg3 {[%emt 0:00:02]} Re3+ {[%emt 0:00:01]} 45. Rxe3 {[%emt 0:00:03]} a1=Q {[%emt 0:00:01]} 46. Kh2 {[%emt 0:00:04]} Ne5 {[%emt 0:00:01]} 47. Re2 {[%emt 0:00:02]} Qd4 {[%emt 0:00:03]} 48. Rxe5 {[%emt 0:00:02]} fxe5 {[%emt 0:00:02]} 49. g4 {[%emt 0:00:01]} Qf2+ {[%emt 0:00:00]} 50. Kh1 {[%emt 0:00:02]} e4 {[%emt 0:00:02]} 51. h4 {[%emt 0:00:01]} e3 {[%emt 0:00:04]} 52. h5+ {[%emt 0:00:01]} Kf6 {[%emt 0:00:08]} 53. h6 {[%emt 0:00:02]} Qh4+ {[%emt 0:00:01]} 54. Kg2 {[%emt 0:00:03]} Qxg4+ 55. Kh2 {[%emt 0:00:03]} Qh4+ {[%emt 0:00:02]} 56. Kg2 {[%emt 0:00:01]} Qxh6 0-1

[Event "3rd FIDE WCCC Blitz U10 2019"]
[Site "Minsk"]
[Date "2019.08.18"]
[Round "6.2"]
[White "Rudnev, Andrei"]
[Black "Vershinin, Igor"]
[Result "0-1"]
[ECO "B24"]
[WhiteElo "1639"]
[BlackElo "2188"]
[Annotator "NA"]
[PlyCount "138"]
[EventDate "2019.08.18"]
[EventType "swiss"]
[EventCountry "BLR"]
[SourceTitle "playchess.com"]
[Source "ChessBase"]
[SourceQuality "1"]
[TimeControl "300+2"]

1. e4 c5 2. Nc3 {[%emt 0:00:00]} Nc6 {[%emt 0:00:00]} 3. g3 {[%emt 0:00:01]} d6 {[%emt 0:00:01]} 4. Bg2 {[%emt 0:00:01]} e5 {[%emt 0:00:00]} 5. d3 {[%emt 0:00:01]} Nf6 {[%emt 0:00:02]} 6. f4 {[%emt 0:00:01]} Be7 {[%emt 0:00:11]} 7. Nf3 {[%emt 0:00:02]} O-O {[%emt 0:00:03]} 8. O-O {[%emt 0:00:03]} Bg4 {[%emt 0:00:09]} 9. h3 {[%emt 0:00:02]} Bxf3 {[%emt 0:00:01]} 10. Bxf3 {[%emt 0:00:02]} Nd4 {[%emt 0:00:24]} 11. f5 {[%emt 0:00:07]} Nd7 {[%emt 0:00:21]} 12. Bg2 {[%emt 0:00:30]} Bg5 {[%emt 0:00:05]} 13. Ne2 {[%emt 0:00:04]} Bxc1 14. Rxc1 {[%emt 0:00:05]} Qg5 {[%emt 0:00:19]} 15. Nxd4 {[%emt 0:00:25]} exd4 {[%emt 0:00:01]} 16. Qf3 {[%emt 0:00:08]} Ne5 {[%emt 0:00:16]} 17. Qf4 {[%emt 0:00:31]} Qf6 {[%emt 0:00:13]} 18. g4 {[%emt 0:00:13]} h6 {[%emt 0:00:09]} 19. Qg3 {[%emt 0:00:30]} Qg5 {[%emt 0:00:38]} 20. Rf4 {[%emt 0:00:07]} Qe7 {[%emt 0:01:09]} 21. h4 {[%emt 0:00:05]} f6 {[%emt 0:00:03]} 22. Rf2 Kf7 {[%emt 0:00:22]} 23. Bf1 {[%emt 0:01:16]} Ke8 {[%emt 0:00:11]} 24. Rg2 {[%emt 0:00:34]} Kd7 {[%emt 0:00:09]} 25. c3 {[%emt 0:00:30]} Rac8 {[%emt 0:00:13]} 26. c4 {[%emt 0:00:11]} Kc7 {[%emt 0:00:06]} 27. a3 {[%emt 0:00:01]} Kb8 {[%emt 0:00:02]} 28. b4 {[%emt 0:00:05]} Qc7 {[%emt 0:00:05]} 29. Qf2 {[%emt 0:00:09]} Qb6 {[%emt 0:00:10]} 30. Rb1 {[%emt 0:00:04]} Qa6 {[%emt 0:00:05]} 31. Qb2 {[%emt 0:00:07]} Nf3+ {[%emt 0:00:18]} 32. Kf2 {[%emt 0:00:01]} Ne5 {[%emt 0:00:13]} 33. Qb3 {[%emt 0:00:07]} Qc6 {[%emt 0:00:02]} 34. b5 {[%emt 0:00:02]} Qb6 {[%emt 0:00:01]} 35. a4 {[%emt 0:00:01]} Qa5 {[%emt 0:00:02]} 36. Rd1 {[%emt 0:00:02]} Nd7 {[%emt 0:00:03]} 37. Kg3 {[%emt 0:00:02]} Nb6 {[%emt 0:00:02]} 38. Ra2 {[%emt 0:00:02]} Nd7 39. Qb2 Ne5 {[%emt 0:00:02]} 40. Qd2 {[%emt 0:00:02]} Qxd2 {[%emt 0:00:04]} 41. Rdxd2 {[%emt 0:00:02]} b6 {[%emt 0:00:01]} 42. a5 {[%emt 0:00:01]} Kb7 43. Rd1 {[%emt 0:00:02]} Ra8 {[%emt 0:00:06]} 44. Rda1 Rfd8 {[%emt 0:00:03]} 45. Kf4 {[%emt 0:00:05]} Re8 {[%emt 0:00:00]} 46. Be2 {[%emt 0:00:01]} Nf7 {[%emt 0:00:01]} 47. Bf3 {[%emt 0:00:02]} Ne5 {[%emt 0:00:02]} 48. Be2 {[%emt 0:00:02]} Nf7 {[%emt 0:00:01]} 49. Bf1 {[%emt 0:00:02]} Ne5 {[%emt 0:00:05]} 50. Kg3 {[%emt 0:00:03]} Re7 {[%emt 0:00:01]} 51. Kf4 {[%emt 0:00:02]} g6 {[%emt 0:00:03]} 52. axb6 {[%emt 0:00:01]} g5+ {[%emt 0:00:03]} 53. hxg5 {[%emt 0:00:04]} hxg5+ 54. Kg3 Ree8 {[%emt 0:00:03]} 55. Rxa7+ {[%emt 0:00:05]} Rxa7 {[%emt 0:00:02]} 56. bxa7 {[%emt 0:00:01]} Ra8 {[%emt 0:00:00]} 57. Be2 {[%emt 0:00:03]} Rxa7 {[%emt 0:00:02]} 58. Rh1 Kb6 {[%emt 0:00:02]} 59. Rh6 {[%emt 0:00:04]} Rf7 {[%emt 0:00:01]} 60. Bf1 {[%emt 0:00:02]} Ka5 {[%emt 0:00:01]} 61. Kf2 {[%emt 0:00:02]} Kb4 {[%emt 0:00:02]} 62. Be2 {[%emt 0:00:01]} Ka5 {[%emt 0:00:01]} 63. Ke1 {[%emt 0:00:01]} Kb4 {[%emt 0:00:01]} 64. Kd2 {[%emt 0:00:01]} Ka5 {[%emt 0:00:01]} 65. Kc2 {[%emt 0:00:03]} Kb4 {[%emt 0:00:01]} 66. Rh8 {[%emt 0:00:02]} Ra7 {[%emt 0:00:04]} 67. Rh6 {[%emt 0:00:03]} Ra2+ {[%emt 0:00:02]} 68. Kd1 {[%emt 0:00:01]} Kc3 {[%emt 0:00:02]} 69. Rxf6 {[%emt 0:00:02]} Ra1# {[%emt 0:00:00]} 0-1

[Event "3rd FIDE WCCC Blitz U10 2019"]
[Site "Minsk"]
[Date "2019.08.18"]
[Round "6.3"]
[White "Zimin, Artur"]
[Black "Vetokhin, Savva"]
[Result "0-1"]
[ECO "A45"]
[WhiteElo "1672"]
[BlackElo "2016"]
[Annotator "NA"]
[PlyCount "90"]
[EventDate "2019.08.18"]
[EventType "swiss"]
[EventCountry "BLR"]
[SourceTitle "playchess.com"]
[Source "ChessBase"]
[SourceQuality "1"]
[TimeControl "300+2"]

1. d4 {[%emt 0:00:00]} Nf6 {[%emt 0:00:00]} 2. Bf4 {[%emt 0:00:01]} c5 {[%emt 0:00:00]} 3. e3 {[%emt 0:00:02]} Qb6 {[%emt 0:00:02]} 4. Nc3 {[%emt 0:00:03]} d6 {[%emt 0:00:03]} 5. Rb1 {[%emt 0:00:07]} Nc6 {[%emt 0:00:05]} 6. Nf3 {[%emt 0:00:02]} e6 {[%emt 0:00:04]} 7. Be2 {[%emt 0:00:11]} Be7 {[%emt 0:00:00]} 8. O-O {[%emt 0:00:01]} O-O {[%emt 0:00:02]} 9. h3 {[%emt 0:00:20]} d5 {[%emt 0:00:11]} 10. dxc5 {[%emt 0:00:18]} Qxc5 {[%emt 0:00:08]} 11. Nb5 {[%emt 0:00:27]} Ne8 {[%emt 0:00:21]} 12. Nbd4 {[%emt 0:00:37]} Bd6 {[%emt 0:00:10]} 13. Bxd6 {[%emt 0:00:15]} Nxd6 {[%emt 0:00:12]} 14. Nxc6 {[%emt 0:00:02]} bxc6 {[%emt 0:00:04]} 15. Bd3 {[%emt 0:00:06]} Ne8 {[%emt 0:00:28]} 16. c3 {[%emt 0:00:21]} Nf6 {[%emt 0:00:01]} 17. Qc2 {[%emt 0:00:10]} Rd8 {[%emt 0:00:10]} 18. e4 {[%emt 0:00:11]} dxe4 {[%emt 0:00:22]} 19. Bxe4 {[%emt 0:00:02]} Nxe4 {[%emt 0:00:01]} 20. Qxe4 {[%emt 0:00:01]} Bb7 {[%emt 0:00:04]} 21. Rbd1 {[%emt 0:00:18]} Qa5 {[%emt 0:00:01]} 22. a3 {[%emt 0:00:58]} Qb6 {[%emt 0:00:06]} 23. Ng5 {[%emt 0:00:09]} g6 {[%emt 0:00:12]} 24. Qh4 {[%emt 0:00:07]} h5 {[%emt 0:00:16]} 25. Qf4 {[%emt 0:00:06]} Rf8 {[%emt 0:01:18]} 26. Rd7 {[%emt 0:00:20]} f6 {[%emt 0:00:32]} 27. Nxe6 Rf7 {[%emt 0:00:00]} 28. Rxf7 {[%emt 0:00:17]} Kxf7 29. Qc4 {[%emt 0:00:05]} Ba6 {[%emt 0:00:17]} 30. Nd8+ {[%emt 0:00:13]} Kg7 {[%emt 0:00:19]} 31. Qf7+ {[%emt 0:00:02]} Kh6 {[%emt 0:00:03]} 32. Ne6 {[%emt 0:00:03]} Qb7 {[%emt 0:00:04]} 33. Qxb7 {[%emt 0:00:05]} Bxb7 {[%emt 0:00:01]} 34. Rd1 {[%emt 0:00:03]} Re8 {[%emt 0:00:01]} 35. Nc5 {[%emt 0:00:01]} Bc8 {[%emt 0:00:01]} 36. Rd6 {[%emt 0:00:02]} Re2 {[%emt 0:00:04]} 37. Rxc6 {[%emt 0:00:03]} Bf5 {[%emt 0:00:01]} 38. Rxf6 {[%emt 0:00:02]} Rxb2 {[%emt 0:00:02]} 39. a4 {[%emt 0:00:03]} Rc2 {[%emt 0:00:01]} 40. Ne6 {[%emt 0:00:03]} Rxc3 {[%emt 0:00:04]} 41. Nd4 {[%emt 0:00:02]} Be4 {[%emt 0:00:04]} 42. f3 {[%emt 0:00:01]} Bd3 {[%emt 0:00:03]} 43. Kh2 {[%emt 0:00:02]} Rc4 {[%emt 0:00:00]} 44. Ne6 Rxa4 45. Rf7 Bc4 0-1

[Event "3rd FIDE WCCC Blitz U10 2019"]
[Site "Minsk"]
[Date "2019.08.18"]
[Round "6.4"]
[White "Samunenkov, Ihor"]
[Black "Korovko, Iakov"]
[Result "0-1"]
[ECO "A45"]
[WhiteElo "1964"]
[BlackElo "1373"]
[Annotator "NA"]
[PlyCount "35"]
[EventDate "2019.08.18"]
[EventType "swiss"]
[EventCountry "BLR"]
[SourceTitle "playchess.com"]
[Source "ChessBase"]
[SourceQuality "1"]
[TimeControl "300+2"]

1. d4 {[%emt 0:00:00]} Nf6 {[%emt 0:00:00]} 2. g3 {[%emt 0:00:00]} e6 {[%emt 0:00:09]} 3. Bg2 {[%emt 0:00:01]} d5 {[%emt 0:00:01]} 4. Nf3 {[%emt 0:00:01]} Bd6 {[%emt 0:00:01]} 5. c4 {[%emt 0:00:01]} O-O {[%emt 0:00:05]} 6. O-O {[%emt 0:00:02]} dxc4 {[%emt 0:00:02]} 7. Qa4 {[%emt 0:00:03]} a6 {[%emt 0:00:02]} 8. Qxc4 {[%emt 0:00:02]} b5 {[%emt 0:00:01]} 9. Qc2 {[%emt 0:00:01]} Bb7 {[%emt 0:00:01]} 10. Bd2 {[%emt 0:00:01]} Nbd7 {[%emt 0:00:03]} 11. Ba5 {[%emt 0:00:01]} Rc8 {[%emt 0:00:07]} 12. Nbd2 {[%emt 0:00:01]} Be7 {[%emt 0:00:15]} 13. e4 {[%emt 0:00:50]} Qe8 {[%emt 0:00:17]} 14. Rac1 {[%emt 0:00:35]} Nb6 {[%emt 0:00:53]} 15. b4 {[%emt 0:00:15]} Nfd7 {[%emt 0:00:30]} 16. Ne5 {[%emt 0:00:18]} Nb8 {[%emt 0:00:16]} 17. Nc6 {[%emt 0:00:17]} Qd7 {[%emt 0:00:11]} 18. Na7 {[%emt 0:00:06]} 0-1

[Event "3rd FIDE WCCC Blitz U10 2019"]
[Site "Minsk"]
[Date "2019.08.18"]
[Round "6.5"]
[White "Novozhilov, Semen"]
[Black "Gusev, Mikhail"]
[Result "0-1"]
[ECO "A43"]
[WhiteElo "1686"]
[BlackElo "1598"]
[Annotator "NA"]
[PlyCount "100"]
[EventDate "2019.08.18"]
[EventType "swiss"]
[EventCountry "BLR"]
[SourceTitle "playchess.com"]
[Source "ChessBase"]
[SourceQuality "1"]
[TimeControl "300+2"]

1. d4 {[%emt 0:00:00]} Nf6 {[%emt 0:00:00]} 2. Nf3 {[%emt 0:00:01]} c5 {[%emt 0:00:00]} 3. d5 {[%emt 0:00:01]} g6 {[%emt 0:00:00]} 4. Nc3 {[%emt 0:00:02]} Bg7 {[%emt 0:00:02]} 5. e4 {[%emt 0:00:01]} O-O {[%emt 0:00:03]} 6. e5 {[%emt 0:00:13]} Ne8 {[%emt 0:00:01]} 7. h4 {[%emt 0:00:11]} d6 {[%emt 0:00:05]} 8. e6 {[%emt 0:00:12]} fxe6 {[%emt 0:00:08]} 9. h5 {[%emt 0:00:03]} Nf6 {[%emt 0:00:41]} 10. hxg6 {[%emt 0:00:03]} hxg6 {[%emt 0:00:01]} 11. Qd3 {[%emt 0:00:41]} Qe8 {[%emt 0:00:57]} 12. Nh4 {[%emt 0:00:39]} Nxd5 {[%emt 0:00:58]} 13. Nxg6 {[%emt 0:00:43]} Rf6 {[%emt 0:00:09]} 14. Nxd5 {[%emt 0:00:32]} exd5 {[%emt 0:00:02]} 15. Nf4 {[%emt 0:00:07]} Bf5 {[%emt 0:00:09]} 16. Qg3 {[%emt 0:00:26]} e6 17. Be2 {[%emt 0:00:31]} Bxc2 {[%emt 0:01:02]} 18. Bh5 {[%emt 0:00:27]} Qa4 {[%emt 0:00:22]} 19. Bg4 {[%emt 0:00:23]} Qe4+ {[%emt 0:00:06]} 20. Be3 {[%emt 0:00:12]} d4 {[%emt 0:00:07]} 21. Nh5 {[%emt 0:00:05]} Rg6 {[%emt 0:00:18]} 22. Bf3 {[%emt 0:00:02]} Rxg3 {[%emt 0:00:06]} 23. Bxe4 {[%emt 0:00:02]} Rxe3+ {[%emt 0:00:08]} 24. fxe3 {[%emt 0:00:02]} Bxe4 {[%emt 0:00:01]} 25. exd4 {[%emt 0:00:01]} cxd4 {[%emt 0:00:00]} 26. Nxg7 {[%emt 0:00:04]} Kxg7 {[%emt 0:00:01]} 27. Rh4 {[%emt 0:00:01]} d5 {[%emt 0:00:01]} 28. Ke2 {[%emt 0:00:02]} Nc6 {[%emt 0:00:01]} 29. a3 {[%emt 0:00:02]} Rf8 {[%emt 0:00:02]} 30. b4 {[%emt 0:00:02]} d3+ {[%emt 0:00:03]} 31. Ke3 {[%emt 0:00:02]} Ne5 {[%emt 0:00:00]} 32. Rc1 {[%emt 0:00:06]} Rf7 {[%emt 0:00:07]} 33. Rc8 {[%emt 0:00:03]} a6 {[%emt 0:00:09]} 34. Rch8 {[%emt 0:00:02]} Kf6 {[%emt 0:00:03]} 35. R8h6+ {[%emt 0:00:01]} Ke7 {[%emt 0:00:00]} 36. R6h5 {[%emt 0:00:02]} Nc4+ {[%emt 0:00:02]} 37. Kd4 {[%emt 0:00:03]} e5+ {[%emt 0:00:01]} 38. Kc3 {[%emt 0:00:01]} d2 {[%emt 0:00:03]} 39. Rxe5+ {[%emt 0:00:04]} Nxe5 {[%emt 0:00:01]} 40. Kxd2 {[%emt 0:00:01]} Rf2+ 41. Ke3 {[%emt 0:00:01]} Rxg2 {[%emt 0:00:03]} 42. Rh5 {[%emt 0:00:01]} Rg3+ {[%emt 0:00:02]} 43. Kd4 {[%emt 0:00:01]} Nf3+ {[%emt 0:00:01]} 44. Kc5 {[%emt 0:00:02]} Nd2 {[%emt 0:00:02]} 45. Kb6 {[%emt 0:00:01]} Rxa3 {[%emt 0:00:02]} 46. Kxb7 {[%emt 0:00:01]} a5 {[%emt 0:00:00]} 47. bxa5 {[%emt 0:00:01]} Rxa5 {[%emt 0:00:01]} 48. Re5+ Kd6 49. Rh5 {[%emt 0:00:03]} d4+ {[%emt 0:00:01]} 50. Kb6 {[%emt 0:00:02]} Rxh5 {[%emt 0:00:01]} 0-1

[Event "3rd FIDE WCCC Blitz U10 2019"]
[Site "Minsk"]
[Date "2019.08.18"]
[Round "6.6"]
[White "Navoyan, Gagik"]
[Black "Tiulyagin, Matvey"]
[Result "1-0"]
[ECO "C00"]
[WhiteElo "1698"]
[BlackElo "1348"]
[Annotator "NA"]
[PlyCount "63"]
[EventDate "2019.08.18"]
[EventType "swiss"]
[EventCountry "BLR"]
[SourceTitle "playchess.com"]
[Source "ChessBase"]
[SourceQuality "1"]
[TimeControl "300+2"]

1. e4 {[%emt 0:00:02]} e6 {[%emt 0:00:00]} 2. d4 {[%emt 0:00:02]} b6 {[%emt 0:00:00]} 3. c4 {[%emt 0:00:03]} Bb7 {[%emt 0:00:00]} 4. Nc3 {[%emt 0:00:04]} Bb4 {[%emt 0:00:01]} 5. d5 {[%emt 0:00:06]} exd5 {[%emt 0:00:01]} 6. exd5 {[%emt 0:00:07]} Nf6 {[%emt 0:00:04]} 7. Nf3 {[%emt 0:00:02]} O-O {[%emt 0:00:04]} 8. Be2 {[%emt 0:00:01]} d6 {[%emt 0:00:01]} 9. O-O {[%emt 0:00:03]} Nbd7 {[%emt 0:00:01]} 10. Bg5 {[%emt 0:00:05]} Bxc3 {[%emt 0:00:08]} 11. bxc3 {[%emt 0:00:02]} Nc5 {[%emt 0:00:01]} 12. Nd4 {[%emt 0:00:37]} Nce4 {[%emt 0:00:08]} 13. Qc1 {[%emt 0:00:06]} Re8 {[%emt 0:00:03]} 14. Bd3 {[%emt 0:00:03]} Qd7 {[%emt 0:00:09]} 15. f3 {[%emt 0:00:16]} Nxg5 16. Qxg5 {[%emt 0:00:03]} h6 {[%emt 0:00:05]} 17. Qg3 {[%emt 0:00:06]} Nh5 {[%emt 0:00:19]} 18. Qh4 {[%emt 0:00:08]} Nf6 {[%emt 0:00:04]} 19. Nf5 {[%emt 0:00:04]} Re5 {[%emt 0:00:31]} 20. Nxh6+ {[%emt 0:00:19]} gxh6 {[%emt 0:00:02]} 21. Qxf6 {[%emt 0:00:03]} Rg5 {[%emt 0:00:11]} 22. Qxh6 {[%emt 0:00:16]} Rg7 {[%emt 0:00:01]} 23. Rae1 {[%emt 0:00:06]} Bc8 {[%emt 0:00:08]} 24. Re4 {[%emt 0:00:18]} f5 {[%emt 0:01:11]} 25. Rh4 {[%emt 0:00:08]} Kf7 {[%emt 0:00:05]} 26. Re1 {[%emt 0:00:21]} Qd8 {[%emt 0:00:15]} 27. Qh5+ {[%emt 0:00:06]} Kf8 {[%emt 0:00:09]} 28. Bxf5 {[%emt 0:00:41]} Bxf5 {[%emt 0:00:11]} 29. Qxf5+ {[%emt 0:00:01]} Kg8 {[%emt 0:00:00]} 30. Qe6+ {[%emt 0:00:08]} Rf7 {[%emt 0:00:06]} 31. Rg4+ {[%emt 0:00:02]} Kf8 {[%emt 0:00:21]} 32. Qh6+ {[%emt 0:00:02]} 1-0